fUSD/lending_fUSD_20251006
["ID","MTS","AMOUNT","RATE_DAILY","PERIOD"]
[389666356,1759777851232,-151.0,0.00029845,30]
[389666357,1759777851242,-151.0,0.00029845,30]
[389666358,1759777851251,-276.34746,0.00029845,30]
[389666359,1759777851260,-151.0,0.00029845,30]
[389666360,1759777851270,-151.0,0.00029845,30]
[389666361,1759777851280,-151.0,0.00029845,30]
[389666362,1759777851290,-198.603133,0.00029845,30]
[389666363,1759777851300,-1322.855955,0.00029845,30]
[389666364,1759777851309,-151.0,0.00029845,30]
[389666365,1759777851320,-1322.855955,0.00029845,30]
[389666366,1759777851329,-184.395217,0.00029845,30]
[389666367,1759777851339,-151.0,0.00029845,30]
[389666368,1759777851349,-1322.855955,0.00029845,30]
[389666369,1759777851359,-151.0,0.00029845,30]
[389666370,1759777851368,-184.395217,0.00029845,30]
[389666371,1759777851378,-1322.855955,0.00029845,30]
[389666372,1759777851387,-184.395217,0.00029845,30]
[389666373,1759777851396,-169.420139,0.00029845,30]
[389666374,1759777851406,-184.395217,0.00029845,30]
[389666375,1759777851415,-151.0,0.00029845,15]
[389666376,1759777851424,-169.420139,0.00029845,30]
[389666377,1759777851433,-151.0,0.00029845,15]
[389666378,1759777851443,-169.420139,0.00029845,30]
[389666379,1759777851452,-169.420139,0.00029845,30]
[389666380,1759777851462,-235.209633,0.00029845,15]
[389666381,1759777851471,-151.0,0.00029845,30]
[389666382,1759777851480,-151.0,0.00029845,30]
[389666383,1759777851490,-151.0,0.00029845,30]
[389666384,1759777851499,-151.0,0.00029845,30]
[389666385,1759777851508,-151.0,0.00029845,30]
[389666386,1759777851517,-151.0,0.00029845,30]
[389666387,1759777851526,-304159.79270925,0.00029845,2]
[389666388,1759777851535,-304159.79270925,0.00029845,2]
[389666389,1759777851544,-304159.79270925,0.00029845,2]
[389666390,1759777851554,-304159.79270925,0.00029845,2]
[389666391,1759777851562,-152.960804,0.00029849,7]
[389666392,1759777851571,-511.0,0.00029849,7]
[389666393,1759777851580,-455.0,0.00029851,2]
[389666394,1759777851589,-2075.92,0.00029853,30]
[389666395,1759777851598,-155.458996,0.00029859,7]
[389666396,1759777851607,-152.960804,0.00029859,7]
[389666397,1759777851616,-3882.67,0.00029863,2]
[389666398,1759777851625,-200.0,0.00029864,2]
[389666399,1759777851635,-200.0,0.00029864,2]
[389666400,1759777851644,-150.0,0.00029864,2]
[389666401,1759777851653,-200.0,0.00029864,2]
[389666402,1759777851662,-200.0,0.00029864,2]
[389666403,1759777851671,-200.0,0.00029864,2]
[389666404,1759777851680,-200.0,0.00029864,2]
[389666405,1759777851689,-150.0,0.00029864,2]
[389666406,1759777851699,-500.0,0.00029864,2]
[389666407,1759777851709,-500.0,0.00029864,2]
[389666408,1759777851720,-500.0,0.00029864,2]
[389666409,1759777851730,-500.0,0.00029864,2]
[389666410,1759777851739,-500.0,0.00029864,2]
[389666411,1759777851748,-500.0,0.00029864,2]
[389666412,1759777851757,-500.0,0.00029864,2]
[389666413,1759777851767,-150.0,0.00029864,2]
[389666414,1759777851776,-500.0,0.00029864,2]
[389666415,1759777851785,-500.0,0.00029864,2]
[389666416,1759777851795,-1041.71845943,0.00029864,2]
[389666417,1759777851804,-155.458996,0.00029864,3]
[389666418,1759777851813,-155.458996,0.00029864,45]
[389666419,1759777851823,-152.960804,0.00029864,3]
[389666420,1759777851832,-154.061899,0.00029864,3]
[389666421,1759777851841,-152.960804,0.00029864,45]
[389666422,1759777851850,-155.458996,0.00029869,7]
[389666423,1759777851860,-152.960804,0.00029869,7]
[389666424,1759777851869,-154.061899,0.00029869,7]
[389666425,1759777851879,-500.0,0.00029873,5]
[389666426,1759777851888,-500.0,0.00029873,5]
[389666427,1759777851897,-500.0,0.00029873,5]
[389666428,1759777851906,-155.458996,0.00029878,7]
[389666429,1759777851915,-152.955031,0.00029878,7]
[389666430,1759777851924,-152.960804,0.00029878,7]
[389666431,1759777851934,-154.061899,0.00029878,7]
[389666432,1759777851942,-155.458996,0.00029882,45]
[389666433,1759777851952,-152.960804,0.00029882,45]
[389666434,1759777851961,-192.710885,0.00029893,3]
[389666435,1759777851971,-151.723226,0.00029893,3]
[389666436,1759777851981,-220.547291,0.00029893,3]
[389666437,1759777851990,-155.458996,0.00029893,3]
[389666438,1759777851999,-155.028891,0.00029893,3]
[389666439,1759777852009,-172.168856,0.00029893,3]
[389666440,1759777852018,-152.955031,0.00029893,3]
[389666441,1759777852027,-152.960804,0.00029893,3]
[389666442,1759777852036,-154.061899,0.00029893,3]
[389666443,1759777852045,-637.52,0.000299,15]
[389666444,1759777852055,-2000.0,0.000299,2]
[389666445,1759777852064,-2000.0,0.000299,2]
[389666446,1759777852073,-1000.0,0.000299,2]
[389666447,1759777852082,-1999.99,0.000299,2]
[389666448,1759777852091,-1766.16,0.000299,2]
[389666449,1759777852100,-61242.82,0.000299,7]
[389666450,1759777852109,-13453.07,0.000299,2]
[389666451,1759777852118,-370.68887098,0.000299,30]
[389666452,1759777852127,-474.96,0.000299,2]
[389666453,1759777852137,-1337.25,0.000299,7]
[389666454,1759777852146,-151.0,0.000299,30]
[389666455,1759777852155,-151.0,0.000299,30]
[389666456,1759777852164,-151.0,0.000299,30]
[389666457,1759777852173,-151.0,0.000299,30]
[389666458,1759777852183,-151.0,0.000299,30]
[389666459,1759777852192,-151.0,0.000299,14]
[389666460,1759777852203,-151.0,0.000299,14]
[389666461,1759777852216,-151.0,0.000299,30]
[389666462,1759777852225,-151.0,0.000299,30]
[389666463,1759777852234,-151.0,0.000299,30]
[389666464,1759777852245,-155.458996,0.000299,45]
[389666465,1759777852255,-152.955031,0.000299,45]
[389666466,1759777852264,-152.960804,0.000299,45]
[389666467,1759777852273,-154.061899,0.000299,45]
[389666468,1759777852283,-151.0,0.000299,30]
[389666469,1759777852293,-151.0,0.000299,30]
[389666470,1759777852302,-151.0,0.000299,30]
[389666471,1759777852311,-151.0,0.000299,30]
[389666472,1759777852321,-151.0,0.000299,30]
[389666473,1759777852330,-151.0,0.000299,30]
[389666474,1759777852339,-151.0,0.000299,30]
[389666475,1759777852348,-151.0,0.000299,30]
[389666476,1759777852357,-151.0,0.000299,30]
[389666477,1759777852367,-151.0,0.000299,30]
[389666478,1759777852376,-151.0,0.000299,30]
[389666479,1759777852385,-151.0,0.000299,30]
[389666480,1759777852394,-151.0,0.000299,30]
[389666481,1759777852403,-154.823117,0.000299,30]
[389666482,1759777852412,-282.635352,0.000299,30]
[389666483,1759777852422,-271.431064,0.000299,30]
[389666484,1759777852431,-397.195398,0.000299,30]
[389666485,1759777852440,-271.431064,0.000299,30]
[389666486,1759777852449,-397.195398,0.000299,30]
[389666487,1759777852459,-271.431064,0.000299,30]
[389666488,1759777852471,-397.195398,0.000299,30]
[389666489,1759777852481,-271.431064,0.000299,30]
[389666490,1759777852490,-397.195398,0.000299,30]
[389666491,1759777852500,-207.394406,0.000299,30]
[389666492,1759777852511,-151.0,0.000299,30]
[389666493,1759777852520,-256.836515,0.000299,30]
[389666494,1759777852529,-151.0,0.000299,30]
[389666495,1759777852539,-898.249888,0.000299,30]
[389666496,1759777852548,-157.609489,0.000299,30]
[389666497,1759777852557,-898.249888,0.000299,30]
[389666498,1759777852567,-256.836515,0.000299,30]
[389666499,1759777852576,-898.249888,0.000299,30]
[389666500,1759777852586,-256.836515,0.000299,30]
[389666501,1759777852595,-898.249888,0.000299,30]
[389666502,1759777852604,-256.836515,0.000299,30]
[389666503,1759777852614,-151.0,0.000299,30]
[389666504,1759777852623,-264.102382,0.000299,30]
[389666505,1759777852632,-151.0,0.000299,30]
[389666506,1759777852641,-297.959237,0.000299,30]
[389666507,1759777852893,-151.0,0.000299,30]
[389666508,1759777852914,-151.0,0.000299,30]
[389666509,1759777852925,-264.102382,0.000299,30]
[389666510,1759777852935,-151.0,0.000299,30]
[389666511,1759777852945,-264.102382,0.000299,30]
[389666512,1759777852954,-151.0,0.000299,30]
[389666513,1759777852964,-264.102382,0.000299,30]
[389666514,1759777852973,-168.986499,0.000299,30]
[389666515,1759777852983,-151.0,0.000299,30]
[389666516,1759777852993,-168.986499,0.000299,30]
[389666517,1759777853002,-168.986499,0.000299,30]
[389666518,1759777853012,-168.986499,0.000299,30]
[389666519,1759777853021,-151.0,0.000299,30]
[389666520,1759777853031,-151.0,0.000299,30]
[389666521,1759777853041,-151.0,0.000299,30]
[389666522,1759777853051,-151.0,0.000299,30]
[389666523,1759777853061,-151.0,0.000299,30]
[389666524,1759777853071,-151.0,0.000299,30]
[389666525,1759777853081,-1322.855955,0.000299,30]
[389666526,1759777853092,-203.045526,0.000299,30]
[389666527,1759777853102,-1322.855955,0.000299,30]
[389666528,1759777853112,-184.395217,0.000299,30]
[389666529,1759777853123,-151.0,0.000299,30]
[389666530,1759777853133,-151.0,0.000299,30]
[389666531,1759777853143,-1322.855955,0.000299,30]
[389666532,1759777853153,-184.395217,0.000299,30]
[389666533,1759777853163,-1322.855955,0.000299,30]
[389666534,1759777853174,-184.395217,0.000299,30]
[389666535,1759777853184,-169.420139,0.000299,30]
[389666536,1759777853193,-184.395217,0.000299,30]
[389666537,1759777853210,-151.0,0.000299,15]
[389666538,1759777853223,-169.420139,0.000299,30]
[389666539,1759777853232,-151.0,0.000299,15]
[389666540,1759777853243,-169.420139,0.000299,30]
[389666541,1759777853253,-169.420139,0.000299,30]
[389666542,1759777853264,-151.0,0.000299,30]
[389666543,1759777853274,-151.0,0.000299,30]
[389666544,1759777853284,-151.0,0.000299,30]
[389666545,1759777853294,-151.0,0.000299,30]
[389666546,1759777853304,-151.0,0.000299,30]
[389666547,1759777853315,-1807.17,0.00029913,15]
[389666548,1759777853325,-150.0,0.0002992,120]
[389666549,1759777853334,-151.0,0.00029922,30]
[389666550,1759777853344,-151.0,0.00029922,30]
[389666551,1759777853354,-151.0,0.00029922,30]
[389666552,1759777853363,-151.0,0.00029922,30]
[389666553,1759777853373,-151.0,0.00029922,30]
[389666554,1759777853383,-151.0,0.00029922,30]
[389666555,1759777853393,-234.933203,0.00029922,30]
[389666556,1759777853403,-151.0,0.00029922,30]
[389666557,1759777853413,-151.0,0.00029922,30]
[389666558,1759777853423,-327.48486,0.00029922,30]
[389666559,1759777853433,-327.48486,0.00029922,30]
[389666560,1759777853443,-327.48486,0.00029922,30]
[389666561,1759777853453,-327.48486,0.00029922,30]
[389666562,1759777853465,-327.48486,0.00029922,30]
[389666563,1759777853475,-327.48486,0.00029922,30]
[389666564,1759777853485,-327.48486,0.00029922,30]
[389666565,1759777853495,-327.48486,0.00029922,30]
[389666566,1759777853504,-327.48486,0.00029922,30]
[389666567,1759777853514,-327.48486,0.00029922,30]
[389666568,1759777853524,-327.48486,0.00029922,30]
[389666569,1759777853534,-327.48486,0.00029922,30]
[389666570,1759777853544,-151.0,0.00029922,14]
[389666571,1759777853553,-151.0,0.00029922,14]
[389666572,1759777853563,-151.0,0.00029922,14]
[389666573,1759777853573,-238.256201,0.00029922,14]
[389666574,1759777853584,-151.0,0.00029922,30]
[389666575,1759777853593,-151.0,0.00029927,30]
[389666576,1759777853603,-151.0,0.00029927,30]
[389666577,1759777853614,-151.0,0.00029927,30]
[389666578,1759777853623,-354.378774,0.00029927,30]
[389666579,1759777853633,-278.853845,0.00029927,30]
[389666580,1759777853643,-354.378774,0.00029927,30]
[389666581,1759777853654,-354.378774,0.00029927,30]
[389666582,1759777853664,-345.516141,0.00029927,30]
[389666583,1759777853673,-151.0,0.00029927,30]
[389666584,1759777853686,-354.378774,0.00029927,30]
[389666585,1759777853696,-345.516141,0.00029927,30]
[389666586,1759777853705,-151.0,0.00029927,30]
[389666587,1759777853716,-345.516141,0.00029927,30]
[389666588,1759777853725,-151.0,0.00029927,30]
[389666589,1759777853735,-213.626657,0.00029927,30]
[389666590,1759777853745,-345.516141,0.00029927,30]
[389666591,1759777853755,-288.45061,0.00029927,30]
[389666592,1759777853765,-151.0,0.00029927,30]
[389666593,1759777853774,-241.644586,0.00029927,30]
[389666594,1759777853783,-159.193596,0.00029927,30]
[389666595,1759777853793,-241.644586,0.00029927,30]
[389666596,1759777853802,-241.644586,0.00029927,30]
[389666597,1759777853810,-241.644586,0.00029927,30]
[389666598,1759777853819,-151.0,0.00029927,30]
[389666599,1759777853829,-151.0,0.00029927,30]
[389666600,1759777853838,-154.505309,0.00029927,30]
[389666601,1759777853847,-300.0,0.00029927,10]
[389666602,1759777853856,-151.0,0.00029928,30]
[389666603,1759777853865,-197.14842,0.00029928,30]
[389666604,1759777853874,-151.0,0.00029928,30]
[389666605,1759777853883,-151.0,0.00029928,30]
[389666606,1759777853892,-151.0,0.00029928,30]
[389666607,1759777853901,-151.0,0.00029928,30]
[389666608,1759777853910,-151.0,0.00029928,30]
[389666609,1759777853919,-151.0,0.00029928,30]
[389666610,1759777853928,-151.0,0.00029928,30]
[389666611,1759777853937,-151.0,0.00029928,30]
[389666612,1759777853947,-151.0,0.00029928,30]
[389666613,1759777853957,-151.0,0.00029928,30]
[389666614,1759777853966,-151.0,0.00029928,30]
[389666615,1759777853976,-164.126545,0.00029928,30]
[389666616,1759777853987,-151.0,0.00029928,30]
[389666617,1759777853997,-151.0,0.00029928,30]
[389666618,1759777854007,-151.0,0.00029928,30]
[389666619,1759777854017,-151.0,0.00029928,30]
[389666620,1759777854027,-151.0,0.00029928,30]
[389666621,1759777854037,-151.0,0.00029928,30]
[389666622,1759777854046,-151.0,0.00029928,30]
[389666623,1759777854056,-151.0,0.00029928,30]
[389666624,1759777854066,-151.0,0.00029928,30]
[389666625,1759777854075,-151.0,0.00029928,30]
[389666626,1759777854085,-151.0,0.00029928,30]
[389666627,1759777854095,-151.0,0.00029928,30]
[389666628,1759777854105,-151.0,0.00029928,30]
[389666629,1759777854115,-151.0,0.00029928,30]
[389666630,1759777854125,-151.0,0.00029928,30]
[389666631,1759777854134,-151.0,0.00029928,30]
[389666632,1759777854143,-151.0,0.00029928,30]
[389666633,1759777854153,-151.0,0.00029928,30]
[389666634,1759777854162,-151.0,0.00029928,30]
[389666635,1759777854172,-151.0,0.00029928,30]
[389666636,1759777854182,-354.378774,0.00029928,30]
[389666637,1759777854192,-354.378774,0.00029928,30]
[389666638,1759777854206,-354.378774,0.00029928,30]
[389666639,1759777854216,-345.516141,0.00029928,30]
[389666640,1759777854227,-151.0,0.00029928,30]
[389666641,1759777854236,-354.378778,0.00029928,30]
[389666642,1759777854246,-345.516141,0.00029928,30]
[389666643,1759777854256,-151.0,0.00029928,30]
[389666644,1759777854267,-345.516141,0.00029928,30]
[389666645,1759777854276,-151.0,0.00029928,30]
[389666646,1759777854287,-345.516137,0.00029928,30]
[389666647,1759777854296,-151.0,0.00029928,30]
[389666648,1759777854305,-241.644586,0.00029928,30]
[389666649,1759777854315,-241.644586,0.00029928,30]
[389666650,1759777854324,-241.644586,0.00029928,30]
[389666651,1759777854333,-241.644587,0.00029928,30]
[389666652,1759777854341,-151.0,0.00029928,30]
[389666653,1759777854351,-151.0,0.00029928,30]
[389666654,1759777854360,-50000.0,0.00029929,20]
[389666655,1759777854370,-50000.0,0.00029929,21]
[389666656,1759777854379,-50000.0,0.00029929,22]
[389666657,1759777854388,-50000.0,0.00029929,23]
[389666658,1759777854397,-50000.0,0.00029929,24]
[389666659,1759777854407,-50000.0,0.00029929,25]
[389666660,1759777854416,-50000.0,0.00029929,26]
[389666661,1759777854426,-50000.0,0.00029929,27]
[389666662,1759777854435,-50000.0,0.00029929,28]
[389666663,1759777854444,-50000.0,0.00029929,29]
[389666664,1759777854454,-50000.0,0.00029929,10]
[389666665,1759777854463,-50000.0,0.00029929,11]
[389666666,1759777854474,-50000.0,0.00029929,12]
[389666667,1759777854483,-50000.0,0.00029929,13]
[389666668,1759777854493,-50000.0,0.00029929,14]
[389666669,1759777854503,-50000.0,0.00029929,15]
[389666670,1759777854512,-50000.0,0.00029929,16]
[389666671,1759777854522,-50000.0,0.00029929,17]
[389666672,1759777854531,-50000.0,0.00029929,18]
[389666673,1759777854541,-50000.0,0.00029929,19]
[389666674,1759777854550,-151.0,0.00029929,30]
[389666675,1759777854559,-187.28884,0.00029929,30]
[389666676,1759777854568,-187.28884,0.00029929,30]
[389666677,1759777854578,-187.28884,0.00029929,30]
[389666678,1759777854587,-187.28884,0.00029929,30]
[389666679,1759777854596,-151.0,0.00029929,30]
[389666680,1759777854606,-151.0,0.00029929,30]
[389666681,1759777854615,-224.841616,0.00029929,30]
[389666682,1759777854624,-151.0,0.00029929,30]
[389666683,1759777854633,-151.0,0.00029929,30]
[389666684,1759777854642,-151.0,0.00029929,30]
[389666685,1759777854652,-209.634101,0.00029929,30]
[389666686,1759777854661,-151.0,0.00029929,30]
[389666687,1759777854670,-151.0,0.00029929,30]
[389666688,1759777854680,-151.0,0.00029929,30]
[389666689,1759777854689,-151.0,0.00029929,30]
[389666690,1759777854698,-151.0,0.00029929,30]
[389666691,1759777854707,-151.0,0.00029929,30]
[389666692,1759777854717,-151.0,0.00029929,30]
[389666693,1759777854727,-151.0,0.00029929,30]
[389666694,1759777854736,-195.838651,0.00029929,30]
[389666695,1759777854745,-151.0,0.00029929,2]
[389666696,1759777854755,-151.0,0.00029929,2]
[389666697,1759777854764,-151.0,0.00029929,2]
[389666698,1759777854774,-151.0,0.00029929,30]
[389666699,1759777854783,-205.756289,0.00029929,30]
[389666700,1759777854794,-288.84798,0.00029929,30]
[389666701,1759777854803,-151.0,0.00029929,30]
[389666702,1759777854813,-271.431064,0.00029929,30]
[389666703,1759777854823,-397.195398,0.00029929,30]
[389666704,1759777854833,-271.431064,0.00029929,30]
[389666705,1759777854842,-397.195398,0.00029929,30]
[389666706,1759777854851,-271.431064,0.00029929,30]
[389666707,1759777854860,-397.195398,0.00029929,30]
[389666708,1759777854869,-271.431064,0.00029929,30]
[389666709,1759777854879,-397.195398,0.00029929,30]
[389666710,1759777854888,-151.0,0.00029929,30]
[389666711,1759777854897,-256.836515,0.00029929,30]
[389666712,1759777854907,-215.882408,0.00029929,30]
[389666713,1759777854916,-898.249888,0.00029929,30]
[389666714,1759777854926,-256.836515,0.00029929,30]
[389666715,1759777854935,-898.249888,0.00029929,30]
[389666716,1759777854944,-898.249888,0.00029929,30]
[389666717,1759777854954,-256.836515,0.00029929,30]
[389666718,1759777854963,-898.249888,0.00029929,30]
[389666719,1759777854974,-256.836515,0.00029929,30]
[389666720,1759777854983,-151.0,0.00029929,30]
[389666721,1759777854993,-264.102382,0.00029929,30]
[389666722,1759777855002,-151.0,0.00029929,30]
[389666723,1759777855011,-151.0,0.00029929,30]
[389666724,1759777855021,-264.102382,0.00029929,30]
[389666725,1759777855030,-151.0,0.00029929,30]
[389666726,1759777855039,-264.102382,0.00029929,30]
[389666727,1759777855048,-151.0,0.00029929,30]
[389666728,1759777855058,-264.102382,0.00029929,30]
[389666729,1759777855067,-168.986499,0.00029929,30]
[389666730,1759777855076,-151.0,0.00029929,30]
[389666731,1759777855086,-168.986499,0.00029929,30]
[389666732,1759777855095,-168.986499,0.00029929,30]
[389666733,1759777855104,-168.986499,0.00029929,30]
[389666734,1759777855114,-151.0,0.00029929,30]
[389666735,1759777855123,-151.0,0.00029929,30]
[389666736,1759777855132,-151.0,0.00029929,30]
[389666737,1759777855141,-151.0,0.00029929,30]
[389666738,1759777855152,-151.0,0.00029929,30]
[389666739,1759777855162,-1322.855955,0.00029929,30]
[389666740,1759777855172,-1322.855955,0.00029929,30]
[389666741,1759777855181,-184.395217,0.00029929,30]
[389666742,1759777855191,-211.94806,0.00029929,30]
[389666743,1759777855202,-1322.855955,0.00029929,30]
[389666744,1759777855215,-184.395217,0.00029929,30]
[389666745,1759777855225,-1322.855955,0.00029929,30]
[389666746,1759777855235,-184.395217,0.00029929,30]
[389666747,1759777855246,-169.420139,0.00029929,30]
[389666748,1759777855256,-184.395217,0.00029929,30]
[389666749,1759777855267,-151.0,0.00029929,15]
[389666750,1759777855278,-169.420139,0.00029929,30]
[389666751,1759777855288,-151.0,0.00029929,15]
[389666752,1759777855298,-169.420139,0.00029929,30]
[389666753,1759777855344,-169.420139,0.00029929,30]
[389666754,1759777855354,-151.0,0.00029929,30]
[389666755,1759777855363,-151.0,0.00029929,30]
[389666756,1759777855372,-151.0,0.00029929,30]
[389666757,1759777855381,-151.0,0.00029929,30]
[389666758,1759777855390,-8193.20131838,0.0002993,2]
[389666759,1759777855399,-91167.6898492,0.0002993,30]
[389666760,1759777855537,-90088.416495,0.0002993,30]
[389666761,1759777855549,-6191.11002406,0.0002993,30]
[389666762,1759777855561,-3768197.61071688,0.0002993,30]
[389666763,1759777855626,-200.0,0.00028831,2]
[389666764,1759777855636,-500.0,0.0002982,7]
[389666765,1759777855645,-500.0,0.00029821,7]
[389666766,1759777855654,-4302.793,0.0002993,30]
[389666767,1759777855664,-16212.99170349,0.0002993,30]
[389666768,1759777855675,-280.45,0.0002993,30]
[389666769,1759777855686,-722.0,0.0002993,30]
[389666770,1759777855701,-500.0,0.00029821,7]
[389666771,1759777855710,-391.96944886,0.0002993,30]
[389666772,1759777855722,-4492.94857192,0.0002993,30]
[389666773,1759777855733,-2140.40761699,0.0002993,30]
[389666774,1759777855745,-8128.39144075,0.0002993,30]
[389666775,1759777855755,-1886.4,0.0002993,30]
[389666776,1759777855767,-472.2934,0.0002993,30]
[389666777,1759777855778,-385.47304823,0.0002993,30]
[389666778,1759777855788,-1520.58691,0.0002993,30]
[389666779,1759777855799,-12580.0,0.0002993,30]
[389666784,1759777934745,500.0,6.201e-05,2]
[389666785,1759777936716,600.0,6.201e-05,2]
[389666786,1759777940394,295.15566057,6.201e-05,2]
[389666787,1759777942161,600.0,6.201e-05,2]
[389666788,1759777943992,500.0,6.201e-05,2]
[389666789,1759778110103,-155.0,0.00015999,2]
[389666790,1759778110132,-500.0,0.00015999,2]
[389666791,1759778110159,-470.14331215,0.00015999,2]
[389666792,1759778110183,-13717.71,0.00016,2]
[389666793,1759778110206,-22499.99,0.00016,2]
[389666794,1759778110229,-22500.0,0.00016,2]
[389666795,1759778110257,-13874.85668785,0.00016,2]
[389666800,1759778584624,-1000.0,0.00013699,2]
[389666801,1759778584650,-500.0,0.00015999,2]
[389666802,1759778584674,-199.56340155,0.00015999,2]
[389666803,1759778584699,-500.0,0.00015999,2]
[389666804,1759778584734,-584.78438005,0.00015999,2]
[389666805,1759778584762,-500.0,0.00015999,2]
[389666806,1759778584788,-166.01886103,0.00015999,2]
[389666807,1759778584814,-500.0,0.00015999,2]
[389666808,1759778584839,-168.06344813,0.00015999,2]
[389666809,1759778584866,-500.0,0.00015999,2]
[389666810,1759778584892,-500.0,0.00015999,2]
[389666811,1759778584917,-1125.14331215,0.00016,2]
[389666812,1759778584942,-233756.42659709,0.00016,2]
[389666813,1759778851218,-551.97596703,0.00014968,2]
[389666814,1759778851243,-199.05275504,0.00014968,2]
[389666815,1759778851268,-2000.0,0.00014984,2]
[389666816,1759778851293,-195.51173357,0.00014984,2]
[389666817,1759778851317,-466.21320272,0.00014999,2]
[389666818,1759778851341,-500.0,0.00014999,2]
[389666819,1759778851364,-367.64441369,0.00014999,2]
[389666820,1759778851392,-409.34906604,0.00014999,2]
[389666821,1759778851416,-500.0,0.00014999,2]
[389666822,1759778851439,-500.0,0.00014999,2]
[389666823,1759778851466,-700925.0993723,0.00015,2]
[389666824,1759778890588,-5689.74713809,0.00015,2]
[389666825,1759778890612,-534338.00996605,0.00015,2]
[389666826,1759779020766,-1324.17325046,0.00015314,2]
[389666827,1759779020790,-3235.57340291,0.00016,2]
[389666828,1759779020812,-1772.50262068,0.000162,5]
[389666829,1759779020836,-1000.0,0.00016201,2]
[389666830,1759779020858,-150.0,0.000164,120]
[389666831,1759779020880,-2000.0,0.00016465,2]
[389666832,1759779020903,-250.0,0.00016465,2]
[389666833,1759779020925,-714.47959824,0.0001649,2]
[389666834,1759779020947,-551.97596701,0.00016624,2]
[389666835,1759779020969,-161.92,0.00016846,2]
[389666836,1759779020994,-551.97596701,0.00018281,2]
[389666837,1759779021017,-3385.27,0.00018613,2]
[389666838,1759779021040,-4281.87,0.00019178,2]
[389666839,1759779021063,-200.0,0.000199,7]
[389666840,1759779021086,-199.05275504,0.000199,2]
[389666841,1759779021110,-551.97596701,0.00019937,2]
[389666842,1759779021134,-500.0,0.00019999,2]
[389666843,1759779021156,-326.34924191,0.00019999,2]
[389666844,1759779021181,-286.54434623,0.00019999,2]
[389666845,1759779021204,-307.35108958,0.00019999,2]
[389666846,1759779021226,-500.0,0.00019999,2]
[389666847,1759779021249,-1018.18587067,0.0002,2]
[389666848,1759779021271,-56417.34682778,0.0002,2]
[389666849,1759779021293,-153679.98957193,0.0002,2]
[389666850,1759779021315,-58326.87688864,0.0002,30]
[389666851,1759779021337,-8306.5866349,0.0002,2]
[389666891,1759779031892,-1336.499657,0.0002,2]
[389666892,1759779031948,-1128.06116711,0.0002,2]
[389666893,1759779031958,-1512.82303355,0.0002,2]
[389666894,1759779031967,-9174.23290278,0.0002001,2]
[389666895,1759779031976,-1000.0,0.00020187,2]
[389666896,1759779031986,-1018.18587067,0.000202,2]
[389666897,1759779031995,-1018.18587067,0.000204,2]
[389666898,1759779032006,-1018.18587067,0.000206,2]
[389666899,1759779032015,-1018.18587067,0.000208,2]
[389666900,1759779032024,-3627.87690441,0.00020835,2]
[389666901,1759779032035,-842.44944903,0.00020835,2]
[389666902,1759779032045,-258.44509312,0.00021,2]